fUST/lending_fUST_20240905
["ID","MTS","AMOUNT","RATE_DAILY","PERIOD"]
[337226100,1725511865855,-2897.311599,0.00022465,7]
[337226101,1725511865864,-2897.311599,0.00022465,7]
[337226102,1725511865875,-1213.17,0.00022465,2]
[337226103,1725511865888,-2897.311599,0.00022465,7]
[337226104,1725511865899,-2897.311599,0.00022465,7]
[337226105,1725511865910,-2897.311599,0.00022465,7]
[337226106,1725511865924,-8401.57,0.00022465,2]
[337226107,1725511865934,-500.0,0.00022465,2]
[337226108,1725511865944,-500.0,0.00022465,2]
[337226109,1725511865953,-500.0,0.00022465,2]
[337226110,1725511865964,-500.0,0.00022465,2]
[337226111,1725511865973,-500.0,0.00022465,2]
[337226112,1725511865982,-2039.53,0.00022465,2]
[337226113,1725511865992,-500.0,0.00022465,2]
[337226114,1725511866001,-506.44482077,0.00022465,2]
[337226115,1725511866012,-4028.61,0.00022465,2]
[337226116,1725511866022,-500.0,0.00022465,2]
[337226117,1725511866033,-500.0,0.00022465,2]
[337226118,1725511866042,-500.0,0.00022465,2]
[337226119,1725511866051,-500.0,0.00022465,2]
[337226120,1725511866062,-500.0,0.00022465,2]
[337226121,1725511866072,-879.2,0.00022465,2]
[337226122,1725511866081,-500.0,0.00022465,2]
[337226123,1725511866090,-500.0,0.00022465,2]
[337226124,1725511866100,-2218.89,0.00022465,2]
[337226125,1725511866110,-2023.48,0.000225,14]
[337226126,1725511866120,-644.67,0.000225,14]
[337226127,1725511866129,-1000.0,0.00022521,2]
[337226128,1725511866138,-1000.0,0.00022521,2]
[337226129,1725511866148,-1031.7548018,0.00022521,2]
[337226130,1725511866158,-3275.48451865,0.000226,2]
[337226131,1725511866168,-3275.48451862,0.000226,2]
[337226132,1725511866177,-3275.48451862,0.000226,2]
[337226133,1725511866187,-3275.48451862,0.000226,2]
[337226134,1725511866197,-5349.37995082,0.000226,2]
[337226135,1725511866207,-2897.311599,0.000226,7]
[337226136,1725511866219,-2897.311605,0.000226,7]
[337226137,1725511866236,-500.0,0.00022609,2]
[337226138,1725511866245,-302.21432435,0.0002266,2]
[337226139,1725511866255,-1000.0,0.00022721,2]
[337226140,1725511866265,-865.69943136,0.00022721,2]
[337226141,1725511866274,-450.98986473,0.00022739,2]
[337226142,1725511866284,-500.0,0.00022739,2]
[337226143,1725511866293,-500.0,0.00022739,2]
[337226144,1725511866303,-500.0,0.00022739,2]
[337226145,1725511866312,-500.0,0.00022739,2]
[337226146,1725511866322,-484.37093851,0.00022739,2]
[337226147,1725511866331,-500.0,0.00022739,2]
[337226148,1725511866340,-500.0,0.00022739,2]
[337226149,1725511866350,-500.0,0.00022739,2]
[337226150,1725511866360,-500.0,0.00022739,2]
[337226151,1725511866369,-500.0,0.00022739,2]
[337226152,1725511866382,-1383.44,0.00022739,2]
[337226153,1725511866393,-500.0,0.00022739,2]
[337226154,1725511866404,-500.0,0.00022739,2]
[337226155,1725511866414,-500.0,0.00022739,2]
[337226156,1725511866424,-500.0,0.00022739,2]
[337226157,1725511866435,-500.0,0.00022739,2]
[337226158,1725511866445,-500.0,0.00022739,2]
[337226159,1725511866456,-500.0,0.00022739,2]
[337226160,1725511866474,-500.0,0.00022739,2]
[337226161,1725511866485,-500.0,0.00022739,2]
[337226162,1725511866497,-500.0,0.00022739,2]
[337226163,1725511866507,-500.0,0.00022739,2]
[337226164,1725511866518,-500.0,0.00022739,2]
[337226165,1725511866529,-500.0,0.00022739,2]
[337226166,1725511866540,-646.86,0.00022739,2]
[337226167,1725511866550,-500.0,0.00022739,2]
[337226168,1725511866559,-920.43,0.00022739,2]
[337226169,1725511866572,-605.14204586,0.00022739,2]
[337226170,1725511866582,-403.37758823,0.00022739,2]
[337226171,1725511866593,-500.0,0.00022739,2]
[337226172,1725511866603,-500.0,0.00022739,2]
[337226173,1725511866613,-500.0,0.00022739,2]
[337226174,1725511866623,-530.47,0.00022739,2]
[337226175,1725511866632,-500.0,0.00022739,2]
[337226176,1725511866642,-500.0,0.00022739,2]
[337226177,1725511866654,-500.0,0.00022739,2]
[337226178,1725511866664,-500.0,0.00022739,2]
[337226179,1725511866674,-544.76,0.00022739,2]
[337226180,1725511866684,-628.95,0.00022739,2]
[337226181,1725511866694,-500.0,0.00022739,2]
[337226182,1725511866704,-500.0,0.00022739,2]
[337226183,1725511866718,-500.0,0.00022739,2]
[337226184,1725511866728,-500.0,0.00022739,2]
[337226185,1725511866738,-500.0,0.00022739,2]
[337226186,1725511866748,-500.0,0.00022739,2]
[337226187,1725511866760,-500.0,0.00022739,2]
[337226188,1725511866770,-500.0,0.00022739,2]
[337226189,1725511866780,-500.0,0.00022739,2]
[337226190,1725511866789,-500.0,0.00022739,2]
[337226191,1725511866800,-500.0,0.00022739,2]
[337226192,1725511866809,-500.0,0.00022739,2]
[337226193,1725511866819,-500.0,0.00022739,2]
[337226194,1725511866829,-500.0,0.00022739,2]
[337226195,1725511866839,-654.72,0.00022739,2]
[337226196,1725511866850,-500.0,0.00022739,2]
[337226197,1725511866859,-500.0,0.00022739,2]
[337226198,1725511866869,-503.53,0.00022739,2]
[337226199,1725511866878,-500.0,0.00022739,2]
[337226200,1725511866888,-1089.61,0.00022739,2]
[337226201,1725511866897,-516.72067447,0.00022739,2]
[337226202,1725511866908,-632.13,0.00022739,2]
[337226203,1725511866920,-500.0,0.00022739,2]
[337226204,1725511866929,-500.0,0.00022739,2]
[337226205,1725511866940,-500.0,0.00022739,2]
[337226206,1725511866951,-578.99,0.00022739,2]
[337226207,1725511866962,-500.0,0.00022739,2]
[337226208,1725511866971,-500.0,0.00022739,2]
[337226209,1725511866981,-500.0,0.00022739,2]
[337226210,1725511866990,-880.94,0.00022739,2]
[337226211,1725511866999,-500.0,0.00022739,2]
[337226212,1725511867009,-730.47,0.00022739,2]
[337226213,1725511867018,-500.0,0.00022739,2]
[337226214,1725511867027,-500.0,0.00022739,2]
[337226215,1725511867036,-500.0,0.00022739,2]
[337226216,1725511867046,-500.0,0.00022739,2]
[337226217,1725511867055,-515.1989892,0.00022739,2]
[337226218,1725511867065,-500.0,0.00022739,2]
[337226219,1725511867074,-500.0,0.00022739,2]
[337226220,1725511867084,-323.89105753,0.00022739,2]
[337226221,1725511867093,-512.93,0.00022739,2]
[337226222,1725511867103,-500.0,0.00022739,2]
[337226223,1725511867113,-500.0,0.00022739,2]
[337226224,1725511867122,-500.0,0.00022739,2]
[337226225,1725511867131,-500.0,0.00022739,2]
[337226226,1725511867140,-500.0,0.00022739,2]
[337226227,1725511867150,-500.0,0.00022739,2]
[337226228,1725511867159,-236.22550013,0.00022739,2]
[337226229,1725511867168,-983.26,0.00022739,2]
[337226230,1725511867179,-500.0,0.00022739,2]
[337226231,1725511867189,-514.57710035,0.00022739,2]
[337226232,1725511867199,-500.0,0.00022739,2]
[337226233,1725511867209,-500.0,0.00022739,2]
[337226234,1725511867218,-500.0,0.00022739,2]
[337226235,1725511867227,-500.0,0.00022739,2]
[337226236,1725511867237,-1389.41,0.00022739,2]
[337226237,1725511867246,-500.0,0.00022739,2]
[337226238,1725511867256,-943.77,0.00022739,2]
[337226239,1725511867266,-500.0,0.00022739,2]
[337226240,1725511867276,-500.0,0.00022739,2]
[337226241,1725511867286,-500.0,0.00022739,2]
[337226242,1725511867295,-500.0,0.00022739,2]
[337226243,1725511867305,-1098.5,0.00022739,2]
[337226244,1725511867315,-517.77964334,0.00022739,2]
[337226245,1725511867326,-500.0,0.00022739,2]
[337226246,1725511867338,-500.0,0.00022739,2]
[337226247,1725511867348,-500.0,0.00022739,2]
[337226248,1725511867357,-500.0,0.00022739,2]
[337226249,1725511867367,-500.0,0.00022739,2]
[337226250,1725511867377,-500.0,0.00022739,2]
[337226251,1725511867386,-500.0,0.00022739,2]
[337226252,1725511867396,-500.0,0.00022739,2]
[337226253,1725511867405,-792.4,0.00022739,2]
[337226254,1725511867415,-500.0,0.00022739,2]
[337226255,1725511867424,-500.0,0.00022739,2]
[337226256,1725511867435,-500.0,0.00022739,2]
[337226257,1725511867444,-500.0,0.00022739,2]
[337226258,1725511867454,-500.0,0.00022739,2]
[337226259,1725511867466,-973.32,0.00022739,2]
[337226260,1725511867477,-500.0,0.00022739,2]
[337226261,1725511867488,-500.0,0.00022739,2]
[337226262,1725511867501,-516.86602499,0.00022739,2]
[337226263,1725511867512,-500.0,0.00022739,2]
[337226264,1725511867522,-1667.17,0.00022739,2]
[337226265,1725511867534,-500.0,0.00022739,2]
[337226266,1725511867546,-713.54,0.00022739,2]
[337226267,1725511867556,-500.0,0.00022739,2]
[337226268,1725511867566,-500.0,0.00022739,2]
[337226269,1725511867575,-500.0,0.00022739,2]
[337226270,1725511867587,-500.0,0.00022739,2]
[337226271,1725511867597,-500.0,0.00022739,2]
[337226272,1725511867607,-500.0,0.00022739,2]
[337226273,1725511867617,-500.0,0.00022739,2]
[337226274,1725511867626,-500.0,0.00022739,2]
[337226275,1725511867638,-500.0,0.00022739,2]
[337226276,1725511867650,-500.0,0.00022739,2]
[337226277,1725511867662,-500.0,0.00022739,2]
[337226278,1725511867672,-600.19,0.00022739,2]
[337226279,1725511867681,-1200.16,0.00022739,2]
[337226280,1725511867691,-508.1347743,0.00022739,2]
[337226281,1725511867700,-500.0,0.00022739,2]
[337226282,1725511867711,-547.39,0.00022739,2]
[337226283,1725511867720,-500.0,0.00022739,2]
[337226284,1725511867730,-597.91,0.00022739,2]
[337226285,1725511867739,-500.0,0.00022739,2]
[337226286,1725511867749,-500.0,0.00022739,2]
[337226287,1725511867760,-724.8,0.00022739,2]
[337226288,1725511867769,-500.0,0.00022739,2]
[337226289,1725511867779,-519.41,0.00022739,2]
[337226290,1725511867788,-538.39273093,0.00022739,2]
[337226291,1725511867798,-500.0,0.00022739,2]
[337226292,1725511867808,-500.0,0.00022739,2]
[337226293,1725511867818,-500.0,0.00022739,2]
[337226294,1725511867827,-1172.27,0.00022739,2]
[337226295,1725511867837,-500.0,0.00022739,2]
[337226296,1725511867849,-686.67,0.00022739,2]
[337226297,1725511867859,-610.92,0.00022739,2]
[337226298,1725511867868,-500.0,0.00022739,2]
[337226299,1725511867878,-500.0,0.00022739,2]
[337226300,1725511867888,-504.55850804,0.00022739,2]
[337226301,1725511867897,-500.0,0.00022739,2]
[337226302,1725511867907,-500.0,0.00022739,2]
[337226303,1725511867921,-500.0,0.00022739,2]
[337226304,1725511867933,-630.41,0.00022739,2]
[337226305,1725511867943,-500.0,0.00022739,2]
[337226306,1725511867953,-1809.8,0.00022739,2]
[337226307,1725511867964,-500.0,0.00022739,2]
[337226308,1725511867973,-500.0,0.00022739,2]
[337226309,1725511867983,-500.0,0.00022739,2]
[337226310,1725511867992,-395.5298673,0.00022739,2]
[337226311,1725511868002,-1723.36,0.00022739,2]
[337226312,1725511868011,-871.55,0.00022739,2]
[337226313,1725511868021,-500.0,0.00022739,2]
[337226314,1725511868031,-500.0,0.00022739,2]
[337226315,1725511868041,-615.73,0.00022739,2]
[337226316,1725511868050,-1096.16,0.00022739,2]
[337226317,1725511868060,-500.0,0.00022739,2]
[337226318,1725511868070,-500.0,0.00022739,2]
[337226319,1725511868081,-506.01236495,0.00022739,2]
[337226320,1725511868092,-500.0,0.00022739,2]
[337226321,1725511868103,-500.0,0.00022739,2]
[337226322,1725511868114,-1500.55,0.00022739,2]
[337226323,1725511868125,-500.0,0.00022739,2]
[337226324,1725511868136,-500.0,0.00022739,2]
[337226325,1725511868147,-500.0,0.00022739,2]
[337226326,1725511868158,-500.0,0.00022739,2]
[337226327,1725511868169,-500.0,0.00022739,2]
[337226328,1725511868180,-734.3,0.00022739,2]
[337226329,1725511868192,-500.0,0.00022739,2]
[337226330,1725511868204,-763.41,0.00022739,2]
[337226331,1725511868217,-500.0,0.00022739,2]
[337226332,1725511868229,-500.0,0.00022739,2]
[337226333,1725511868240,-963.02,0.00022739,2]
[337226334,1725511868252,-502.29895088,0.00022739,2]
[337226335,1725511868262,-500.0,0.00022739,2]
[337226336,1725511868274,-500.0,0.00022739,2]
[337226337,1725511868284,-500.0,0.00022739,2]
[337226338,1725511868294,-507.15633168,0.00022739,2]
[337226339,1725511868304,-500.0,0.00022739,2]
[337226340,1725511868313,-500.0,0.00022739,2]
[337226341,1725511868324,-418.95,0.00022739,2]
[337226342,1725511868335,-500.0,0.00022739,2]
[337226343,1725511868346,-1683.27,0.00022739,2]
[337226344,1725511868356,-1325.51,0.00022739,2]
[337226345,1725511868367,-500.0,0.00022739,2]
[337226346,1725511868377,-500.0,0.00022739,2]
[337226347,1725511868387,-1379.71,0.00022739,2]
[337226348,1725511868399,-500.0,0.00022739,2]
[337226349,1725511868410,-510.35,0.00022739,2]
[337226350,1725511868421,-500.0,0.00022739,2]
[337226351,1725511868432,-725.95,0.00022739,2]
[337226352,1725511868443,-500.0,0.00022739,2]
[337226353,1725511868456,-500.0,0.00022739,2]
[337226354,1725511868466,-988.72,0.00022739,2]
[337226355,1725511868476,-1055.41,0.00022739,2]
[337226356,1725511868676,-500.0,0.00022739,2]
[337226357,1725511868689,-1655.83,0.00022739,2]
[337226358,1725511868700,-745.97,0.00022739,2]
[337226359,1725511868710,-500.0,0.00022739,2]
[337226360,1725511868723,-500.0,0.00022739,2]
[337226361,1725511868735,-500.0,0.00022739,2]
[337226362,1725511868745,-1402.62,0.00022739,2]
[337226363,1725511868755,-500.0,0.00022739,2]
[337226364,1725511868766,-500.0,0.00022739,2]
[337226365,1725511868776,-500.0,0.00022739,2]
[337226366,1725511868787,-259.11178521,0.00022739,2]
[337226367,1725511868799,-500.0,0.00022739,2]
[337226368,1725511868811,-503.99289121,0.00022739,2]
[337226369,1725511868822,-668.05,0.00022739,2]
[337226370,1725511868832,-500.0,0.00022739,2]
[337226371,1725511868847,-781.84,0.00022739,2]
[337226372,1725511868857,-500.0,0.00022739,2]
[337226373,1725511868867,-522.39757231,0.00022739,2]
[337226374,1725511868877,-502.11,0.00022739,2]
[337226375,1725511868888,-858.62,0.00022739,2]
[337226376,1725511868899,-500.0,0.00022739,2]
[337226377,1725511868910,-701.5,0.00022739,2]
[337226378,1725511868922,-1709.97,0.00022739,2]
[337226379,1725511868935,-500.0,0.00022739,2]
[337226380,1725511868946,-500.0,0.00022739,2]
[337226381,1725511868956,-547.43,0.00022739,2]
[337226382,1725511868970,-500.0,0.00022739,2]
[337226383,1725511868980,-366.4231924,0.00022739,2]
[337226384,1725511868990,-1601.35,0.00022739,2]
[337226385,1725511869000,-1486.04,0.00022739,2]
[337226386,1725511869012,-500.0,0.00022739,2]
[337226387,1725511869025,-576.1,0.00022739,2]
[337226388,1725511869036,-500.0,0.00022739,2]
[337226389,1725511869047,-500.0,0.00022739,2]
[337226390,1725511869059,-555.25,0.00022739,2]
[337226391,1725511869070,-500.0,0.00022739,2]
[337226392,1725511869081,-500.0,0.00022739,2]
[337226393,1725511869092,-1062.22,0.00022739,2]
[337226394,1725511869103,-3644.86,0.00022739,2]
[337226395,1725511869115,-500.0,0.00022739,2]
[337226396,1725511869127,-500.0,0.00022739,2]
[337226397,1725511869139,-500.0,0.00022739,2]
[337226398,1725511869150,-500.0,0.00022739,2]
[337226399,1725511869159,-500.0,0.00022739,2]
[337226400,1725511869169,-500.0,0.00022739,2]
[337226401,1725511869180,-500.0,0.00022739,2]
[337226402,1725511869190,-516.25,0.00022739,2]
[337226403,1725511869200,-500.0,0.00022739,2]
[337226404,1725511869209,-600.47,0.00022739,2]
[337226405,1725511869219,-500.0,0.00022739,2]
[337226406,1725511869228,-500.0,0.00022739,2]
[337226407,1725511869238,-200.0,0.00022739,2]
[337226408,1725511869248,-6866.22,0.00022739,2]
[337226409,1725511869257,-500.0,0.00022739,2]
[337226410,1725511869267,-500.0,0.00022739,2]
[337226411,1725511869277,-500.0,0.00022739,2]
[337226412,1725511869287,-500.0,0.00022739,2]
[337226413,1725511869297,-9015.3,0.00022739,2]
[337226414,1725511869308,-500.0,0.00022739,2]
[337226415,1725511869319,-500.0,0.00022739,2]
[337226416,1725511869329,-511.67325628,0.00022739,2]
[337226417,1725511869339,-958.48,0.00022739,2]
[337226418,1725511869350,-500.0,0.00022739,2]
[337226419,1725511869360,-236.18274221,0.00022739,2]
[337226420,1725511869369,-500.0,0.00022739,2]
[337226421,1725511869379,-500.0,0.00022739,2]
[337226422,1725511869389,-1463.1,0.00022739,2]
[337226423,1725511869400,-500.0,0.00022739,2]
[337226424,1725511869409,-500.0,0.00022739,2]
[337226425,1725511869421,-500.0,0.00022739,2]
[337226426,1725511869431,-500.0,0.00022739,2]
[337226427,1725511869443,-500.0,0.00022739,2]
[337226428,1725511869453,-542.78,0.00022739,2]
[337226429,1725511869465,-2059.37,0.00022739,2]
[337226430,1725511869477,-500.0,0.00022739,2]
[337226431,1725511869488,-379.23557886,0.00022739,2]
[337226432,1725511869499,-585.78,0.00022739,2]
[337226433,1725511869510,-1334.01,0.00022739,2]
[337226434,1725511869520,-500.0,0.00022739,2]
[337226435,1725511869530,-500.0,0.00022739,2]
[337226436,1725511869540,-973.56,0.00022739,2]
[337226437,1725511869550,-655.28,0.00022739,2]
[337226438,1725511869561,-500.0,0.00022739,2]
[337226439,1725511869571,-500.0,0.00022739,2]
[337226440,1725511869580,-509.8,0.00022739,2]
[337226441,1725511869589,-500.0,0.00022739,2]
[337226442,1725511869600,-308.33732756,0.00022739,2]
[337226443,1725511869609,-1262.17,0.00022739,2]
[337226444,1725511869619,-500.0,0.00022739,2]
[337226445,1725511869631,-500.0,0.00022739,2]
[337226446,1725511869643,-500.0,0.00022739,2]
[337226447,1725511869653,-500.0,0.00022739,2]
[337226448,1725511869662,-930.09,0.00022739,2]
[337226449,1725511869672,-500.0,0.00022739,2]
[337226450,1725511869681,-4605.84,0.00022739,2]
[337226451,1725511869691,-4539.58,0.00022739,2]
[337226452,1725511869700,-500.0,0.00022739,2]
[337226453,1725511869710,-500.0,0.00022739,2]
[337226454,1725511869730,-500.0,0.00022739,2]
[337226455,1725511869741,-516.69,0.00022739,2]
[337226456,1725511869751,-520.73,0.00022739,2]
[337226457,1725511869761,-8665.42,0.00022739,2]
[337226458,1725511869771,-1868.7,0.00022739,2]
[337226459,1725511869781,-517.39359122,0.00022739,2]
[337226460,1725511869790,-500.0,0.00022739,2]
[337226461,1725511869799,-1198.72,0.00022739,2]
[337226462,1725511869809,-500.0,0.00022739,2]
[337226463,1725511869819,-1631.2,0.00022739,2]
[337226464,1725511869829,-795.56,0.00022739,2]
[337226465,1725511869839,-500.0,0.00022739,2]
[337226466,1725511869851,-500.0,0.00022739,2]
[337226467,1725511869861,-500.0,0.00022739,2]
[337226468,1725511869870,-1254.34,0.00022739,2]
[337226469,1725511869880,-500.0,0.00022739,2]
[337226470,1725511869890,-797.81,0.00022739,2]
[337226471,1725511869900,-500.0,0.00022739,2]
[337226472,1725511869910,-500.0,0.00022739,2]
[337226473,1725511869921,-651.56,0.00022739,2]
[337226474,1725511869931,-500.0,0.00022739,2]
[337226475,1725511869940,-500.0,0.00022739,2]
[337226476,1725511869950,-500.0,0.00022739,2]
[337226477,1725511869959,-1469.69,0.00022739,2]
[337226478,1725511869975,-4846.51,0.00022739,2]
[337226479,1725511869985,-1164.21,0.00022739,2]
[337226480,1725511869994,-500.0,0.00022739,2]
[337226481,1725511870003,-500.0,0.00022739,2]
[337226482,1725511870013,-719.01,0.00022739,2]
[337226483,1725511870022,-500.0,0.00022739,2]
[337226484,1725511870032,-643.35,0.00022739,2]
[337226485,1725511870042,-1125.72,0.00022739,2]
[337226486,1725511870051,-500.0,0.00022739,2]
[337226487,1725511870060,-500.0,0.00022739,2]
[337226488,1725511870069,-500.0,0.00022739,2]
[337226489,1725511870078,-500.0,0.00022739,2]
[337226490,1725511870087,-500.0,0.00022739,2]
[337226491,1725511870097,-500.0,0.00022739,2]
[337226492,1725511870107,-832.64,0.00022739,2]
[337226493,1725511870118,-500.0,0.00022739,2]
[337226494,1725511870129,-627.66,0.00022739,2]
[337226495,1725511870139,-500.0,0.00022739,2]
[337226496,1725511870149,-500.0,0.00022739,2]
[337226497,1725511870159,-3434.58,0.00022739,2]
[337226498,1725511870168,-1942.98,0.00022739,2]
[337226499,1725511870177,-1071.36,0.00022739,2]
[337226500,1725511870186,-359.0173226,0.00022739,2]
[337226501,1725511870195,-655.83,0.00022739,2]
[337226502,1725511870205,-8321.17,0.00022739,2]
[337226503,1725511870216,-885.87,0.00022739,2]
[337226504,1725511870225,-500.0,0.00022739,2]
[337226505,1725511870234,-500.0,0.00022739,2]
[337226506,1725511870244,-500.0,0.00022739,2]
[337226507,1725511870254,-500.0,0.00022739,2]
[337226508,1725511870263,-500.0,0.00022739,2]
[337226509,1725511870273,-549.9,0.00022739,2]
[337226510,1725511870283,-3266.09,0.00022739,2]
[337226511,1725511870298,-1019.58,0.00022739,2]
[337226512,1725511870309,-500.0,0.00022739,2]
[337226513,1725511870320,-1155.63,0.00022739,2]
[337226514,1725511870332,-500.0,0.00022739,2]
[337226515,1725511870345,-500.0,0.00022739,2]
[337226516,1725511870355,-500.0,0.00022739,2]
[337226517,1725511870365,-592.81,0.00022739,2]
[337226518,1725511870377,-6270.83,0.00022739,2]
[337226519,1725511870388,-1206.16,0.00022739,2]
[337226520,1725511870399,-500.0,0.00022739,2]
[337226521,1725511870410,-1027.87,0.00022739,2]
[337226522,1725511870422,-545.65,0.00022739,2]
[337226523,1725511870434,-500.0,0.00022739,2]
[337226524,1725511870446,-1061.8,0.00022739,2]
[337226525,1725511870456,-1461.46,0.00022739,2]
[337226526,1725511870468,-500.0,0.00022739,2]
[337226527,1725511870478,-500.0,0.00022739,2]
[337226528,1725511870488,-500.0,0.00022739,2]
[337226529,1725511870498,-500.0,0.00022739,2]
[337226530,1725511870508,-649.79,0.00022739,2]
[337226531,1725511870518,-500.0,0.00022739,2]
[337226532,1725511870527,-1532.78,0.00022739,2]
[337226533,1725511870537,-500.0,0.00022739,2]
[337226534,1725511870547,-1486.29,0.00022739,2]
[337226535,1725511870557,-607.1,0.00022739,2]
[337226536,1725511870568,-565.43,0.00022739,2]
[337226537,1725511870577,-500.0,0.00022739,2]
[337226538,1725511870587,-551.21,0.00022739,2]
[337226539,1725511870596,-500.0,0.00022739,2]
[337226540,1725511870607,-464.53163965,0.00022739,2]
[337226541,1725511870618,-500.0,0.00022739,2]
[337226542,1725511870627,-643.27,0.00022739,2]
[337226543,1725511870637,-1465.46,0.00022739,2]
[337226544,1725511870647,-1061.13,0.00022739,2]
[337226545,1725511870657,-1517.06,0.00022739,2]
[337226546,1725511870666,-7317.01,0.00022739,2]
[337226547,1725511870676,-500.0,0.00022739,2]
[337226548,1725511870686,-1174.12,0.00022739,2]
[337226549,1725511870696,-16122.26,0.00022739,2]
[337226550,1725511870706,-500.0,0.00022739,2]
[337226551,1725511870720,-500.0,0.00022739,2]
[337226552,1725511870734,-820.94,0.00022739,2]
[337226553,1725511870745,-500.0,0.00022739,2]
[337226554,1725511870754,-1659.05,0.00022739,2]
[337226555,1725511870764,-500.05,0.00022739,2]
[337226556,1725511870774,-495.65166736,0.00022739,2]
[337226557,1725511870784,-724.83,0.00022739,2]
[337226558,1725511870794,-612.73,0.00022739,2]
[337226559,1725511870804,-500.0,0.00022739,2]
[337226560,1725511870814,-13958.5,0.00022739,2]
[337226561,1725511870824,-500.0,0.00022739,2]
[337226562,1725511870833,-1213.17,0.00022739,2]
[337226563,1725511870846,-8401.57,0.00022739,2]
[337226564,1725511870857,-500.0,0.00022739,2]
[337226565,1725511870868,-504.33938074,0.00022739,2]
[337226566,1725511870878,-404.72077633,0.00022739,2]
[337226567,1725511870889,-500.0,0.00022739,2]
[337226568,1725511870899,-500.0,0.00022739,2]
[337226569,1725511870908,-2039.53,0.00022739,2]
[337226570,1725511870918,-500.0,0.00022739,2]
[337226571,1725511870929,-500.0,0.00022739,2]
[337226572,1725511870942,-4028.61,0.00022739,2]
[337226573,1725511870953,-500.0,0.00022739,2]
[337226574,1725511870964,-500.0,0.00022739,2]
[337226575,1725511870975,-500.0,0.00022739,2]
[337226576,1725511870986,-500.0,0.00022739,2]
[337226577,1725511870998,-879.2,0.00022739,2]
[337226578,1725511871009,-500.0,0.00022739,2]
[337226579,1725511871021,-2218.89,0.00022739,2]
[337226580,1725511871031,-500.0,0.00022739,2]
[337226581,1725511871043,-302.27459853,0.0002288,2]
[337226582,1725511871055,-239.99202206,0.00023,2]
[337226583,1725511871066,-11423.30610364,0.00023,2]
[337226584,1725511871076,-348.6,0.00023,2]
[337226585,1725511871085,-170.0,0.00023,2]
[337226586,1725511871094,-150.0,0.00023,2]
[337226587,1725511871104,-192.0,0.00023,2]
[337226588,1725511871114,-160.0,0.00023,2]
[337226589,1725511871125,-500.0,0.00023013,2]
[337226590,1725511871137,-500.0,0.00023013,2]
[337226591,1725511871147,-500.0,0.00023013,2]
[337226592,1725511871157,-500.0,0.00023013,2]
[337226593,1725511871166,-500.0,0.00023013,2]
[337226594,1725511871243,-500.0,0.00023013,2]
[337226595,1725511871253,-500.0,0.00023013,2]
[337226596,1725511871262,-500.0,0.00023013,2]
[337226597,1725511871272,-1383.44,0.00023013,2]
[337226598,1725511871281,-500.0,0.00023013,2]
[337226599,1725511871290,-500.0,0.00023013,2]